bitfinex/quotes_SOLUSD_20260309
["timestamp","ask_amount","ask_price","bid_price","bid_amount"]
[1773083371348,1.06007074,85.28,85.241,1.01351227]
[1773083371543,46.87434733,85.335,85.241,1.01351227]
[1773083371544,29.30969799,85.296,85.241,1.01351227]
[1773083372327,1.06007074,85.269,85.229,11.73309554]
[1773083373446,1.09450284,85.267,85.22,29.33559171]
[1773083374545,1.09450284,85.267,85.221,1.09312824]
[1773083378155,1.09450284,85.265,85.223,1.09312824]
[1773083381156,1.09450284,85.263,85.225,1.09312824]
[1773083383861,11.72739272,85.271,85.227,1.09312824]
[1773083384155,1.09450284,85.27,85.227,1.09312824]
[1773083385658,1.09450284,85.268,85.229,1.09312824]
[1773083389260,11.72786658,85.267,85.231,1.00635984]
[1773083389462,1.03666441,85.266,85.231,1.00635984]
[1773083393239,1.03666441,85.264,85.233,1.00635984]
[1773083395565,1.03666441,85.264,85.235,1.00635984]
[1773083396363,1.03666441,85.259,85.219,1.00635984]
[1773083397544,1.03666441,85.257,85.221,1.00635984]
[1773083399170,29.32104195,85.263,85.222,11.73405928]
[1773083399171,11.72937975,85.256,85.222,11.73405928]
[1773083399377,1.03666441,85.255,85.223,1.00635984]
[1773083401769,1.03666441,85.284,85.228,4.82477569]
[1773083401958,1.03666441,85.284,85.224,45.89301937]
[1773083401959,1.03666441,85.284,85.231,1.00635984]
[1773083402878,1.03666441,85.282,85.233,1.00635984]
[1773083404953,11.72594129,85.281,85.234,41.06342538]
[1773083405270,1.09117176,85.28,85.235,1.03435263]
[1773083407776,1.09117176,85.28,85.225,0.28432314]
[1773083407777,1.09117176,85.278,85.237,1.03435263]
[1773083411170,1.09117176,85.276,85.239,1.03435263]
[1773083413281,1.09117176,85.274,85.241,1.03435263]
[1773083413468,4.22613078,85.27,85.23,1.03435263]
[1773083413665,1.09117176,85.258,85.22,11.73432828]
[1773083413859,1.09117176,85.257,85.22,11.73432828]
[1773083414176,1.09117176,85.257,85.221,1.03435263]
[1773083420898,1.09117176,85.255,85.223,1.03435263]
[1773083421587,1.09117176,85.255,85.217,11.73465704]
[1773083421786,1.09117176,85.249,85.217,11.73465704]
[1773083422090,1.09117176,85.239,85.198,1.03435263]
[1773083422267,1.3754949,85.238,85.198,1.03435263]
[1773083422468,1.09117176,85.237,85.198,1.03435263]
[1773083423888,1.09117176,85.235,85.199,11.73722696]
[1773083424695,1.09117176,85.235,85.2,1.03435263]
[1773083426884,11.73240725,85.234,85.201,11.73695144]
[1773083427081,1.09117176,85.233,85.202,1.03435263]
[1773083428980,1.09117176,85.231,85.204,1.03435263]
[1773083434094,1.09117176,85.231,85.204,1.03435263]
[1773083435195,1.04470296,85.229,85.206,1.01857698]
[1773083436604,1.04470296,85.229,85.195,1.01857698]
[1773083437598,1.04470296,85.227,85.197,1.01857698]
[1773083438801,1.04470296,85.225,85.199,1.01857698]
[1773083441311,1.04470296,85.225,85.201,1.01857698]
[1773083442407,1.04470296,85.223,85.201,1.01857698]
[1773083444111,1.04470296,85.223,85.18,54.09785214]
[1773083444112,1.04470296,85.283,85.212,1.01857698]
[1773083444289,1.04470296,85.283,85.232,4.82477569]
[1773083444489,1.04470296,85.281,85.241,1.01857698]
[1773083445503,1.04470296,85.281,85.243,1.01857698]
[1773083446905,1.04470296,85.279,85.245,1.01857698]
[1773083448910,1.04470296,85.279,85.247,1.10407141]
[1773083450317,1.04470296,85.279,85.249,1.10407141]
[1773083450608,4.2242709,85.31,85.248,41.05668168]
[1773083450609,11.72250486,85.306,85.251,1.10407141]
[1773083450792,11.71934512,85.329,85.261,1.10407141]
[1773083451906,41.01770792,85.329,85.263,1.10407141]
[1773083452304,0.14216157,85.328,85.263,1.10407141]
[1773083452616,0.38816843,85.327,85.263,1.10407141]
[1773083453215,0.38816843,85.318,85.263,1.10407141]
[1773083454422,0.39028322,85.316,85.265,1.10407141]
[1773083457907,66.25385431,85.346,85.257,54.09785214]
[1773083457908,0.39338681,85.329,85.271,3.69383402]
[1773083458206,0.39338681,85.337,85.281,1.10407141]
[1773083459800,0.39538868,85.328,85.281,1.10407141]
[1773083460006,0.39538868,85.326,85.283,1.10407141]
[1773083462314,0.39734704,85.324,85.285,1.10407141]
[1773083464829,0.40113381,85.322,85.287,1.11784553]
[1773083467126,0.40295245,85.32,85.289,1.11784553]
[1773083469206,0.40295245,85.32,85.291,1.11784553]
[1773083469910,0.40561846,85.318,85.291,1.11784553]
[1773083472802,11.72099347,85.317,85.292,11.72442902]
[1773083473003,0.40643868,85.324,85.293,1.11784553]
[1773083475933,0.40640815,85.322,85.295,1.11784553]
[1773083479630,0.40634299,85.327,85.297,1.11784553]
[1773083480907,0.14216157,85.338,85.297,1.11784553]
[1773083481234,0.40632752,85.333,85.297,1.11784553]
[1773083481921,0.406314,85.331,85.299,1.11784553]
[1773083482633,0.406314,85.331,85.273,79.53288069]
[1773083482634,0.40629967,85.33,85.287,1.11784553]
[1773083483031,0.40629967,85.328,85.287,1.11784553]
[1773083484010,0.40628595,85.326,85.289,1.11784553]
[1773083485130,0.1,85.36,85.312,1.11784553]
[1773083485318,0.1,85.36,85.311,1.11784553]
[1773083486028,0.1,85.36,85.313,1.11784553]
[1773083486230,1.06393087,85.36,85.313,1.11784553]
[1773083488320,0.1,85.36,85.315,1.11784553]
[1773083488728,11.81519105,85.36,85.315,1.11784553]
[1773083488935,12.78028403,85.36,85.315,1.11784553]
[1773083489241,0.96509298,85.359,85.315,1.11784553]
[1773083489541,0.1,85.36,85.315,1.11784553]
[1773083490040,11.71522627,85.359,85.315,1.11784553]
[1773083490537,0.1,85.36,85.316,41.02395798]
[1773083490846,0.1,85.36,85.317,1.11784553]
[1773083492440,1.06659078,85.36,85.317,1.11784553]
[1773083492737,0.96659078,85.371,85.32,1.11784553]
[1773083492930,0.96659078,85.368,85.32,1.11784553]
[1773083495644,0.28432314,85.378,85.322,1.03423428]
[1773083497138,0.96837241,85.375,85.322,1.03423428]
[1773083499744,0.96939633,85.368,85.324,1.03423428]
[1773083501833,0.97006939,85.366,85.326,1.03423428]
[1773083504142,0.97102921,85.364,85.328,1.12734949]
[1773083505346,0.97134447,85.362,85.33,1.12734949]
[1773083506136,0.97134447,85.362,85.329,11.71934512]
[1773083506653,0.97196758,85.348,85.301,1.12734949]
[1773083506953,0.97196758,85.347,85.301,1.12734949]
[1773083507442,0.97196758,85.347,85.299,41.03213401]
[1773083507443,0.97227545,85.345,85.303,1.12734949]
[1773083510952,0.97315748,85.343,85.305,1.12734949]
[1773083512835,0.97373417,85.343,85.307,1.12734949]
[1773083515853,0.97459701,85.341,85.309,1.12734949]
[1773083516536,1.25892015,85.341,85.309,1.12734949]
[1773083516745,0.97486609,85.319,85.282,1.12734949]
[1773083516943,0.97486609,85.317,85.282,1.12734949]
[1773083517936,0.97514087,85.315,85.282,12.8530612]
[1773083520266,0.97597045,85.308,85.27,1.12734949]
[1773083520563,1.26029359,85.298,85.27,1.12734949]
[1773083520743,0.97597045,85.297,85.27,1.12734949]
[1773083521536,0.97597045,85.297,85.263,11.72834564]
[1773083521758,0.97597045,85.297,85.265,1.12734949]
[1773083521959,0.97597045,85.297,85.263,11.72834564]
[1773083522256,0.51646799,85.294,85.273,72.75525536]
[1773083522461,0.0573286,85.288,85.273,72.75525536]
[1773083523151,11.72387919,85.296,85.274,1.12119994]
[1773083523354,11.72387919,85.296,85.275,1.12119994]
[1773083523855,11.78313209,85.296,85.275,1.12119994]
[1773083524746,0.0592529,85.296,85.275,1.12119994]
[1773083526346,0.06206408,85.303,85.275,1.12119994]
[1773083526842,0.28432314,85.302,85.275,1.12119994]
[1773083527045,0.06206408,85.301,85.275,1.12119994]
[1773083528355,0.3482119,85.3,85.275,1.12119994]
[1773083528669,0.28432314,85.3,85.275,1.12119994]
[1773083529073,0.06388876,85.299,85.273,72.75525536]
[1773083529450,0.06388876,85.299,85.274,1.12119994]
[1773083529873,0.06388876,85.299,85.275,1.12119994]
[1773083530455,11.72319199,85.301,85.277,1.12119994]
[1773083531152,11.78885205,85.301,85.277,1.12119994]
[1773083533258,0.06604799,85.299,85.277,1.12119994]
[1773083533776,0.06624221,85.307,85.277,1.12119994]
[1773083534358,0.06643782,85.306,85.277,1.12119994]
[1773083535569,0.06643782,85.306,85.279,1.12119994]
[1773083535774,11.72236744,85.307,85.279,1.12119994]
[1773083537057,11.78918034,85.307,85.281,1.12119994]
[1773083539068,11.72236744,85.307,85.283,1.12119994]
[1773083539466,11.72099347,85.317,85.284,1.15479741]
[1773083539677,4.21863013,85.35,85.285,1.15479741]
[1773083539978,0.28432314,85.349,85.285,1.15479741]
[1773083540366,4.21863013,85.35,85.285,1.15479741]
[1773083540560,0.28432314,85.349,85.285,1.15479741]
[1773083540966,4.21863013,85.35,85.285,1.15479741]
[1773083541182,41.2924193,85.349,85.286,41.03838847]
[1773083541357,41.2924193,85.349,85.287,1.15479741]
[1773083542275,41.2924193,85.349,85.292,1.15479741]
[1773083542474,41.00809616,85.349,85.292,1.15479741]
[1773083542882,0.28432314,85.348,85.292,1.15479741]
[1773083543062,41.00809616,85.349,85.292,1.15479741]
[1773083543258,0.28432314,85.348,85.294,1.15479741]
[1773083543457,0.14216157,85.348,85.294,1.15479741]
[1773083543681,0.28432314,85.348,85.294,1.15479741]
[1773083545675,11.71687346,85.347,85.296,1.15479741]
[1773083555311,11.71687346,85.347,85.298,1.15479741]
[1773083555481,41.00905713,85.347,85.298,1.15479741]
[1773083556995,11.71687346,85.347,85.298,1.15479741]
[1773083558289,11.71687346,85.347,85.3,1.15479741]
[1773083561493,11.71687346,85.347,85.302,1.15479741]
[1773083563394,41.00905713,85.347,85.304,1.15479741]
[1773083567498,41.00905713,85.347,85.306,1.15479741]
[1773083568282,41.00905713,85.347,85.307,11.72236744]
[1773083568480,41.00905713,85.347,85.308,1.15479741]
[1773083569599,0.28432314,85.358,85.31,1.15479741]
[1773083570809,4.21885386,85.33,85.292,1.15479741]
[1773083571007,0.28432314,85.339,85.293,1.15479741]
[1773083571388,0.28432314,85.358,85.293,1.15479741]
[1773083573308,0.28432314,85.356,85.295,1.15479741]
[1773083576404,0.28432314,85.356,85.294,41.03453935]
[1773083576405,0.28432314,85.354,85.297,1.15479741]
[1773083577302,41.00521351,85.355,85.297,1.15479741]
[1773083577505,0.28432314,85.349,85.297,1.15479741]
[1773083579105,11.71673618,85.348,85.299,1.15479741]
[1773083580396,41.00857664,85.348,85.299,1.15479741]
[1773083580590,41.00857664,85.348,85.284,54.09785214]
[1773083580591,41.00857664,85.348,85.293,1.15479741]
[1773083580805,41.00857664,85.348,85.156,32.79600058]
[1773083580806,4.21885386,85.31,85.275,12.88146956]
[1773083581111,4.21885386,85.29,85.25,1.15479741]
[1773083581305,4.21885386,85.27,85.238,76.59621382]
[1773083581503,3.69383402,85.306,85.239,45.95561941]
[1773083581504,0.28432314,85.259,85.239,45.95561941]
[1773083581706,4.21885386,85.25,85.239,45.95561941]
[1773083581907,0.28432314,85.259,85.239,45.95561941]
[1773083582109,4.21885386,85.26,85.239,45.95561941]
[1773083583115,3.69383402,85.306,85.231,1.15479741]
[1773083583116,11.7262163,85.279,85.231,1.15479741]
[1773083583298,0.28432314,85.269,85.232,1.15479741]
[1773083585203,11.72772904,85.268,85.234,1.15479741]
[1773083586890,11.72772904,85.268,85.235,11.7322696]
[1773083587093,11.72772904,85.268,85.236,1.15479741]
[1773083587928,11.7263538,85.278,85.236,1.15479741]
[1773083590033,11.7263538,85.278,85.238,1.15479741]
[1773083594423,11.7263538,85.278,85.24,1.15479741]
[1773083594626,4.21885386,85.27,85.24,1.15479741]
[1773083595315,11.7263538,85.278,85.24,1.15479741]
[1773083597329,0.28432314,85.278,85.242,1.15479741]
[1773083598408,4.21885386,85.27,85.242,1.15479741]
[1773083598608,4.21885386,85.26,85.231,1.15479741]
[1773083599902,11.72896702,85.259,85.231,11.73270814]
[1773083600109,11.72896702,85.259,85.231,12.88750555]
[1773083600626,11.72896702,85.259,85.232,1.15479741]
[1773083603029,0.28432314,85.269,85.233,11.7325449]
[1773083603218,0.28432314,85.269,85.233,12.88734231]
[1773083603527,4.21885386,85.25,85.23,0.2]
[1773083603729,4.21885386,85.24,85.23,1e-08]
[1773083605032,11.73171904,85.239,85.23,1e-08]
[1773083606028,0.28432314,85.238,85.21,0.2]
[1773083606218,4.21885386,85.23,85.21,0.2]
[1773083607019,11.73309554,85.229,85.21,0.2]
[1773083608513,41.06198012,85.237,85.21,0.2]
[1773083614145,0.14216157,85.229,85.21,0.2]
[1773083614352,0.28432314,85.229,85.21,0.2]
[1773083615136,41.06631622,85.228,85.21,0.2]
[1773083615636,41.06631622,85.228,85.194,11.73782984]
[1773083615934,41.06631622,85.228,85.195,1.15479741]
[1773083617338,41.06631622,85.228,85.197,1.15479741]
[1773083618317,41.06631622,85.228,85.19,0.2]
[1773083618318,4.21885386,85.21,85.19,0.2]
[1773083618634,0.28432314,85.209,85.19,1e-08]
[1773083619918,41.0759553,85.208,85.19,1e-08]
[1773083621329,0.28432314,85.199,85.19,1e-08]
[1773083622342,41.08077653,85.198,85.173,1.15479741]
[1773083623518,11.73736472,85.198,85.173,1.15479741]
[1773083632045,41.08077653,85.198,85.173,1.15479741]
[1773083632240,41.08077653,85.198,85.13,0.2]
[1773083632241,1.03852372,85.179,85.13,0.2]
[1773083632445,1.03852372,85.169,85.14,11.94532748]
[1773083632833,1.03852372,85.174,85.14,11.94532748]
[1773083633341,0.28432314,85.179,85.14,41.30872893]
[1773083633526,11.74012068,85.178,85.14,41.30872893]
[1773083634144,11.74012068,85.178,85.141,1.14357844]
[1773083636342,11.74012068,85.178,85.143,1.14357844]
[1773083636745,12.7786444,85.178,85.143,1.14357844]
[1773083637860,1.03852372,85.177,85.143,1.14357844]
[1773083639346,11.74039635,85.176,85.144,11.74480879]
[1773083639649,11.74039635,85.176,85.145,1.14357844]
[1773083640267,1.03852372,85.205,85.176,1.14357844]
[1773083640554,1.03852372,85.203,85.176,1.14357844]
[1773083642236,1.03852372,85.189,85.158,1.14357844]
[1773083642438,1.03852372,85.179,85.143,1.14357844]
[1773083643440,0.28432314,85.199,85.143,1.14357844]
[1773083643441,1.146949,85.198,85.143,1.14357844]
[1773083644250,11.73750249,85.197,85.145,1.08975312]
[1773083644742,1.146949,85.196,85.145,1.08975312]
[1773083647261,1.146949,85.194,85.147,1.08975312]
[1773083647449,1.146949,85.189,85.147,1.08975312]
[1773083648366,1.146949,85.187,85.149,1.08975312]
[1773083649944,12.88569154,85.188,85.149,1.08975312]
[1773083650146,1.146949,85.187,85.149,1.08975312]
[1773083651464,12.88596714,85.186,85.151,1.08975312]
[1773083651766,1.146949,85.185,85.151,1.08975312]
[1773083654458,11.73929376,85.184,85.153,1.08975312]
[1773083654666,1.146949,85.183,85.153,1.08975312]
[1773083654861,11.73929376,85.184,85.131,7.48682188]
[1773083654862,1.146949,85.179,85.147,1.08975312]
[1773083655445,1.146949,85.169,85.147,1.08975312]
[1773083655753,1.146949,85.169,85.141,1.08975312]
[1773083656143,1.146949,85.159,85.134,1.08975312]
[1773083656349,1.146949,85.159,85.131,7.48682188]
[1773083657042,1.146949,85.159,85.121,11.74788546]
[1773083657043,1.146949,85.149,85.118,1.08975312]
[1773083657352,1.146949,85.149,85.113,1.08975312]
[1773083659163,1.146949,85.147,85.113,1.08975312]
[1773083659469,1.146949,85.147,85.115,1.08975312]
[1773083660768,11.74425705,85.148,85.115,1.08975312]
[1773083661250,1.146949,85.153,85.116,41.1203534]
[1773083661251,11.74370537,85.152,85.116,41.1203534]
[1773083661458,1.146949,85.151,85.117,1.08975312]
[1773083661661,1.146949,85.149,85.117,1.08975312]
[1773083662870,1.146949,85.147,85.119,1.08975312]
[1773083663872,11.74381195,85.152,85.119,1.08975312]
[1773083665070,1.146949,85.152,85.121,1.08975312]
[1773083665265,1.146949,85.149,85.121,1.08975312]
[1773083668155,0.28432314,85.167,85.1,0.2]
[1773083668156,1.146949,85.147,85.112,1.08975312]
[1773083671755,1.146949,85.145,85.114,1.08975312]
[1773083672177,1.146949,85.139,85.109,12.83930343]
[1773083672576,1.146949,85.129,85.104,1.08975312]
[1773083672881,1.146949,85.129,85.1,0.2]
[1773083673475,1.146949,85.129,85.1,1.33327698]
[1773083673877,1.09574936,85.127,85.1,1.33327698]
[1773083674866,1.09574936,85.127,85.1,0.2]
[1773083675083,1.09574936,85.127,85.1,1.33327698]
[1773083675580,1.09574936,85.127,85.102,1.13327698]
[1773083675974,11.74729224,85.126,85.104,1.13327698]
[1773083676179,1.09574936,85.127,85.104,1.13327698]
[1773083676373,11.74729224,85.126,85.104,1.13327698]
[1773083677862,1.09574936,85.125,85.104,1.13327698]
[1773083678678,11.74756825,85.124,85.104,1.13327698]
[1773083679078,1.09574936,85.119,85.066,3.69383402]
[1773083679480,1.09574936,85.119,85.09,11.95219692]
[1773083680372,1.09574936,85.119,85.09,41.33285269]
[1773083680590,1.09574936,85.123,85.09,41.33285269]
[1773083680890,1.09574936,85.121,85.09,11.95219692]
[1773083681185,1.09574936,85.121,85.091,1.13327698]
[1773083682390,12.84386966,85.12,85.093,1.13327698]
[1773083683683,12.84335256,85.124,85.093,1.13327698]
[1773083683877,1.09574936,85.123,85.093,1.13327698]
[1773083684798,11.74784427,85.122,85.095,1.0812673]
[1773083685795,1.11600248,85.129,85.095,1.0812673]
[1773083686172,11.74618836,85.134,85.095,1.0812673]
[1773083686876,1.11600248,85.133,85.095,1.0812673]
[1773083687692,1.11600248,85.133,85.09,0.2]
[1773083687693,1.11600248,85.128,85.09,0.2]
[1773083687994,1.11600248,85.119,85.09,11.95225319]
[1773083688382,1.11600248,85.119,85.091,1.0812673]
[1773083688893,1.11600248,85.126,85.091,1.0812673]
[1773083689699,1.11600248,85.124,85.093,1.0812673]
[1773083689891,1.11600248,85.124,85.092,11.75198608]
[1773083690494,1.11600248,85.124,85.092,12.83325338]
[1773083691098,1.11600248,85.124,85.093,1.0812673]
[1773083692805,1.11600248,85.122,85.095,1.0812673]
[1773083693999,1.11600248,85.128,85.095,1.0812673]
[1773083694196,29.36484134,85.136,85.095,1.0812673]
[1773083694197,1.40032562,85.133,85.095,1.0812673]
[1773083694400,1.11600248,85.131,85.095,1.0812673]
[1773083695095,1.11600248,85.129,85.097,1.0812673]
[1773083696197,1.11600248,85.127,85.099,1.0812673]
[1773083702008,1.11600248,85.125,85.099,1.0812673]
[1773083702807,1.11600248,85.125,85.101,1.0812673]
[1773083703504,5.35830902,85.13,85.101,1.0812673]
[1773083703705,12.86415726,85.13,85.101,1.0812673]
[1773083704106,1.11737042,85.129,85.102,11.75060515]
[1773083704305,1.11737042,85.129,85.097,1.13840558]
[1773083704608,1.11737042,85.119,85.091,1.13840558]
[1773083705108,1.11737042,85.119,85.091,11.75212419]
[1773083705312,1.11737042,85.119,85.092,1.13840558]
[1773083706915,4.2409386,85.13,85.094,1.13840558]
[1773083706916,1.11737042,85.127,85.094,1.13840558]
[1773083707301,1.11737042,85.126,85.094,1.13840558]
[1773083712003,1.11737042,85.124,85.096,1.13840558]
[1773083712216,11.74688654,85.129,85.096,1.13840558]
[1773083712803,1.11737042,85.128,85.096,1.13840558]
[1773083714402,4.38310017,85.14,85.098,1.13840558]
[1773083714403,1.11737042,85.126,85.098,1.13840558]
[1773083714611,1.11737042,85.145,85.098,1.13840558]
[1773083718319,1.11737042,85.143,85.1,1.13840558]
[1773083720447,1.11737042,85.141,85.102,1.13840558]
[1773083721132,4.2409386,85.16,85.102,1.13840558]
[1773083721330,1.11737042,85.147,85.102,1.13840558]
[1773083722627,1.11737042,85.139,85.104,1.13840558]
[1773083725237,1.11737042,85.137,85.093,1.13840558]
[1773083725437,1.11737042,85.129,85.094,1.13840558]
[1773083727118,1.11737042,85.127,85.093,9.70550723]
[1773083729137,1.11737042,85.125,85.093,9.70550723]
[1773083730441,1.11737042,85.125,85.09,0.2]
[1773083730442,1.11737042,85.119,85.09,0.2]
[1773083731125,1.11737042,85.117,85.091,0.79179236]
[1773083731318,11.74839634,85.118,85.092,0.79179236]
[1773083732024,12.86576676,85.118,85.092,0.79179236]
[1773083732228,11.74839634,85.118,85.092,0.79179236]
[1773083732426,1.11737042,85.117,85.092,0.79179236]
[1773083732819,1.11737042,85.135,85.092,0.79179236]
[1773083733020,0.28432314,85.134,85.092,0.79179236]
[1773083733320,1.11737042,85.131,85.094,0.79453727]
[1773083735334,1.07147902,85.129,85.095,11.75157177]
[1773083735647,1.07147902,85.129,85.096,0.79983394]
[1773083737636,1.07147902,85.127,85.097,11.75129558]
[1773083738331,1.07147902,85.127,85.098,0.80239863]
[1773083739022,1.07147902,85.127,85.097,11.75129558]
[1773083739536,33.60778929,85.13,85.097,0.80490041]
[1773083739537,1.07147902,85.125,85.097,0.80490041]
[1773083741936,1.07147902,85.123,85.098,11.75115748]
[1773083742343,1.07147902,85.123,85.091,0.80851148]
[1773083742642,1.07147902,85.123,85.092,0.80851148]
[1773083743725,11.7470444,85.128,85.092,0.80851148]
[1773083743916,1.07147902,85.127,85.092,0.80851148]
[1773083744414,1.07147902,85.125,85.094,0.81087502]
[1773083747047,11.74756825,85.124,85.096,0.81428958]
[1773083747840,12.9089146,85.124,85.096,0.81428958]
[1773083748135,1.16134635,85.123,85.096,0.81428958]
[1773083748644,12.90822461,85.129,85.096,0.81428958]
[1773083748844,1.16134635,85.128,85.096,0.81428958]
[1773083749342,1.16134635,85.126,85.097,11.75129558]
[1773083750541,1.16134635,85.126,85.09,0.2]
[1773083750542,1.16134635,85.119,85.09,0.2]
[1773083751122,1.16134635,85.119,85.09,11.95219243]
[1773083751531,1.16134635,85.117,85.09,11.95219243]
[1773083753244,1.16134635,85.117,85.09,0.2]
[1773083754629,1.16134635,85.115,85.091,11.75212419]
[1773083756144,1.16134635,85.115,85.09,0.2]
[1773083757447,1.16134635,85.113,85.091,11.75212419]
[1773083757633,1.16134635,85.113,85.092,0.82591836]
[1773083759547,1.16134635,85.113,85.093,11.75184797]
[1773083760342,1.16134635,85.113,85.093,12.58067392]
[1773083761142,1.16134635,85.113,85.095,11.75157177]
[1773083762551,1.16134635,85.113,85.095,0.8307063]
[1773083763552,29.36471822,85.137,85.092,0.83253296]
[1773083763751,11.74591242,85.136,85.092,0.83253296]
[1773083763954,0.28432314,85.135,85.092,0.83253296]
[1773083764954,4.24212005,85.13,85.094,1.1415309]
[1773083765547,1.15771821,85.129,85.094,1.1415309]
[1773083766961,1.15771821,85.127,85.095,11.75157177]
[1773083767760,1.15771821,85.127,85.096,1.1415309]
[1773083769642,11.74729224,85.126,85.098,1.1415309]
[1773083770044,12.90501045,85.126,85.098,1.1415309]
[1773083770460,1.15771821,85.125,85.098,1.1415309]
[1773083774660,1.15771821,85.123,85.099,11.7510194]
[1773083774863,1.15771821,85.123,85.099,12.8925503]
[1773083775061,1.15771821,85.123,85.1,1.1415309]
[1773083777548,1.15771821,85.121,85.1,1.1415309]
[1773083778660,1.15771821,85.121,85.101,11.75074323]
[1773083779165,1.15771821,85.121,85.101,12.89227413]
[1773083779470,1.15771821,85.121,85.102,1.1415309]
[1773083780443,1.15771821,85.121,85.103,12.89199798]
[1773083781149,1.15771821,85.119,85.1,1.1415309]
[1773083781975,1.15771821,85.123,85.1,1.1415309]
[1773083783473,1.15771821,85.121,85.102,1.1415309]
[1773083785757,1.15771821,85.119,85.102,1.1415309]
[1773083786873,1.15771821,85.119,85.101,11.75074323]
[1773083787475,1.15771821,85.119,85.098,1.1415309]
[1773083787673,1.15771821,85.117,85.09,0.2]
[1773083788172,1.15771821,85.117,85.092,1.1415309]
[1773083788979,1.44204135,85.117,85.09,0.2]
[1773083790278,1.15771821,85.114,85.09,0.2]
[1773083791278,1.44204135,85.112,85.09,0.2]
[1773083792082,1.44204135,85.112,85.09,1.3415309]
[1773083793173,11.7490865,85.113,85.091,1.1415309]
[1773083793381,11.7486724,85.116,85.093,1.20255655]
[1773083793581,12.85869226,85.116,85.093,1.20255655]
[1773083793882,1.11001986,85.115,85.093,1.20255655]
[1773083795573,1.11001986,85.115,85.095,1.20255655]
[1773083796090,1.11001986,85.139,85.095,1.20255655]
[1773083796387,1.394343,85.138,85.095,1.20255655]
[1773083796682,0.28432314,85.136,85.095,1.20255655]
[1773083796867,1.394343,85.134,85.095,1.20255655]
[1773083797069,1.25218143,85.132,85.095,1.20255655]
[1773083797367,1.11001986,85.131,85.095,1.20255655]
[1773083800491,1.11001986,85.131,85.09,0.2]
[1773083800492,1.11001986,85.15,85.099,3.69383402]
[1773083800683,1.11001986,85.15,85.1,1.20255655]
[1773083800878,1.11001986,85.149,85.102,1.20255655]
[1773083801091,1.11001986,85.157,85.102,1.20255655]
[1773083802385,1.11001986,85.157,85.104,1.20255655]
[1773083802687,12.8531736,85.156,85.104,1.20255655]
[1773083802883,1.11001986,85.155,85.104,1.20255655]
[1773083803289,1.11001986,85.196,85.108,1.20255655]
[1773083803596,1.11001986,85.209,85.12,35.19]
[1773083803896,1.11001986,85.189,85.133,1.20255655]
[1773083804069,1.11001986,85.189,85.147,1.20255655]
[1773083804271,1.11001986,85.189,85.152,1.20255655]
[1773083806396,1.11001986,85.189,85.154,1.20255655]
[1773083809099,1.11001986,85.189,85.156,1.118889]
[1773083810901,1.17568542,85.187,85.155,11.74329164]
[1773083811494,1.17568542,85.179,85.141,1.118889]
[1773083811804,1.17568542,85.169,85.134,1.118889]
[1773083812476,1.17568542,85.194,85.142,4.82477569]
[1773083812682,1.17568542,85.194,85.145,1.118889]
[1773083813585,1.17568542,85.194,85.15,1.118889]
[1773083815213,1.17568542,85.194,85.152,1.118889]
[1773083818212,1.17568542,85.194,85.154,1.118889]
[1773083819614,1.17568542,85.194,85.156,1.118889]
[1773083820183,11.73805359,85.193,85.155,41.10152075]
[1773083820493,1.17568542,85.189,85.155,11.74329164]
[1773083820896,1.46000856,85.169,85.126,1.118889]
[1773083821215,1.17568542,85.159,85.126,1.118889]
[1773083821593,1.17568542,85.159,85.127,11.74715425]
[1773083821910,1.17568542,85.159,85.128,1.118889]
[1773083822110,0.28432314,85.189,85.128,1.118889]
[1773083822814,11.73584949,85.209,85.137,1.118889]
[1773083823107,4.23383819,85.19,85.148,1.118889]
[1773083823617,4.33383819,85.21,85.156,41.10103809]
[1773083823787,0.1,85.21,85.16,1.19142857]
[1773083823987,1.12152521,85.209,85.16,1.19142857]
[1773083825298,1.12152521,85.218,85.175,1.19142857]
[1773083825694,1.12152521,85.218,85.176,41.09138723]
[1773083825897,0.1,85.23,85.184,1.19142857]
[1773083826096,16.06690342,85.23,85.184,1.19142857]
[1773083826393,0.1,85.23,85.184,1.19142857]
[1773083826593,0.1,85.23,85.18,0.28432314]
[1773083826594,11.72827922,85.264,85.193,1.19142857]
[1773083826801,4.23383819,85.25,85.198,1.19142857]
[1773083827008,4.23383819,85.24,85.198,1.19142857]
[1773083827314,4.23383819,85.26,85.198,1.19142857]
[1773083827616,0.14216157,85.259,85.198,1.19142857]
[1773083827930,0.59375205,85.264,85.214,1.19142857]
[1773083828101,7.28382404,85.265,85.214,1.19142857]
[1773083828302,7.28382404,85.265,85.225,1.19142857]
[1773083828603,0.59590692,85.263,85.225,1.19142857]
[1773083828794,4.23383819,85.26,85.225,1.19142857]
[1773083828989,11.72827922,85.264,85.199,41.08029436]
[1773083828990,11.72827922,85.264,85.204,1.19142857]
[1773083829295,7.28382404,85.265,85.215,1.19142857]
[1773083829498,7.28382404,85.265,85.208,3.69383402]
[1773083829499,0.59804534,85.249,85.2,1.19142857]
[1773083829699,0.59804534,85.237,85.201,11.73695144]